[Event "VIII Iberoamericano Mexico 2022"]
[Site "Mexico City"]
[Date "2022.02.18"]
[Round "7.13"]
[White "Miranda Llanes, Yerisbel"]
[Black "Gonzalez Zamora, Juan Carlos"]
[Result "0-1"]
[ECO "A53"]
[WhiteElo "2261"]
[BlackElo "2544"]
[Annotator "ChessBase"]
[PlyCount "78"]
[EventDate "2022.02.12"]
[EventType "swiss"]
[EventCountry "MEX"]
[SourceTitle "playchess.com"]
[Source "ChessBase"]
[SourceQuality "1"]
[TimeControl "5400+30"]

1. d4 {[%emt 0:00:17]} d6 {[%emt 0:00:11]} 2. c4 {[%emt 0:00:05]} e5 {[%emt 0:00:10]} 3. Nc3 {[%emt 0:00:02]} exd4 {[%emt 0:00:30]} 4. Qxd4 {[%emt 0:00:03]} Nf6 {[%emt 0:00:23]} 5. e4 {[%emt 0:00:05]} Nc6 {[%emt 0:00:35]} 6. Qd2 {[%emt 0:00:12]} g6 {[%emt 0:00:13]} 7. Bd3 {[%emt 0:00:14]} Bg7 {[%emt 0:00:05]} 8. Nge2 {[%emt 0:00:36]} O-O {[%emt 0:01:14]} 9. O-O {[%emt 0:00:09]} Ne5 {[%emt 0:01:55]} 10. b3 {[%emt 0:04:37]} Nxd3 {[%emt 0:02:42]} 11. Qxd3 {[%emt 0:00:01]} Re8 {[%emt 0:02:46]} 12. Bg5 {[%emt 0:03:36]} h6 {[%emt 0:00:08]} 13. Be3 {[%emt 0:00:53]} a6 {[%emt 0:06:02]} 14. Rad1 {[%emt 0:02:12]} b5 {[%emt 0:02:58]} 15. f3 {[%emt 0:08:46]} bxc4 {[%emt 0:06:17]} 16. Qxc4 {[%emt 0:01:01]} Bd7 {[%emt 0:11:21]} 17. Nd4 {[%emt 0:08:19]} Qb8 {[%emt 0:01:16]} 18. Rf2 {[%emt 0:11:36]} Qb7 {[%emt 0:01:27]} 19. Qd3 {[%emt 0:08:32]} Re5 {[%emt 0:07:59]} 20. Nc2 {[%emt 0:03:10]} d5 {[%emt 0:04:56]} 21. Bd4 {[%emt 0:05:04]} dxe4 {[%emt 0:00:27]} 22. fxe4 {[%emt 0:02:40]} Ng4 {[%emt 0:01:49]} 23. Rf4 {[%emt 0:07:01]} c5 {[%emt 0:07:35]} 24. Bxe5 {[%emt 0:12:09]} Bxe5 {[%emt 0:04:24]} 25. Rff1 {[%emt 0:06:37]} Bxh2+ {[%emt 0:04:47]} 26. Kh1 {[%emt 0:00:01]} Be6 {[%emt 0:07:50]} 27. Nd5 {[%emt 0:00:39]} Be5 {[%emt 0:01:03]} 28. Nce3 {[%emt 0:03:28]} h5 {[%emt 0:00:35]} 29. Rc1 {[%emt 0:08:24]} Rc8 {[%emt 0:02:20]} 30. Nc4 {[%emt 0:01:15]} Bxd5 {[%emt 0:07:50]} 31. Qxd5 {[%emt 0:01:44]} Qe7 {[%emt 0:00:18]} 32. g3 {[%emt 0:02:22]} Bxg3 {[%emt 0:02:32]} 33. Kg2 {[%emt 0:00:00]} Bc7 {[%emt 0:00:12]} 34. Rc3 {[%emt 0:00:39]} Rd8 {[%emt 0:00:47]} 35. Qb7 {[%emt 0:00:39]} Ne5 {[%emt 0:01:04]} 36. Rg3 {[%emt 0:00:43]} Nxc4 {[%emt 0:01:14]} 37. bxc4 {[%emt 0:00:02]} Rd2+ {[%emt 0:00:42]} 38. Kg1 {[%emt 0:00:46]} Qe5 {[%emt 0:01:58]} 39. Rh3 {[%emt 0:00:47]} Qg5+ {[%emt 0:09:25]} 0-1

[Event "VIII Iberoamericano Mexico 2022"]
[Site "Mexico City"]
[Date "2022.02.18"]
[Round "7.14"]
[White "Quesada Perez, Luis Ernesto"]
[Black "Estrada Nieto, Julian"]
[Result "1-0"]
[ECO "A29"]
[WhiteElo "2517"]
[BlackElo "2253"]
[Annotator "ChessBase"]
[PlyCount "79"]
[EventDate "2022.02.12"]
[EventType "swiss"]
[EventCountry "MEX"]
[SourceTitle "playchess.com"]
[Source "ChessBase"]
[SourceQuality "1"]
[TimeControl "5400+30"]

1. c4 {[%emt 0:00:09]} e5 {[%emt 0:01:26]} 2. g3 {[%emt 0:00:01]} Nf6 {[%emt 0:00:45]} 3. Bg2 {[%emt 0:00:05]} d5 {[%emt 0:01:17]} 4. cxd5 {[%emt 0:00:07]} Nxd5 {[%emt 0:00:03]} 5. Nc3 {[%emt 0:00:08]} Nb6 {[%emt 0:00:07]} 6. Nf3 {[%emt 0:00:08]} Nc6 {[%emt 0:00:04]} 7. O-O {[%emt 0:00:19]} Be7 {[%emt 0:00:12]} 8. a3 {[%emt 0:00:06]} a5 {[%emt 0:06:45]} 9. d3 {[%emt 0:00:07]} O-O {[%emt 0:00:11]} 10. Be3 {[%emt 0:00:05]} Be6 {[%emt 0:02:37]} 11. Rc1 {[%emt 0:02:47]} Nd5 {[%emt 0:04:14]} 12. Nxd5 {[%emt 0:00:36]} Bxd5 {[%emt 0:00:04]} 13. Qa4 {[%emt 0:00:15]} Re8 {[%emt 0:10:53]} 14. Rfe1 {[%emt 0:21:12]} Qc8 {[%emt 0:19:54]} 15. Qb5 {[%emt 0:02:18]} Rd8 {[%emt 0:01:14]} 16. Nd2 {[%emt 0:03:16]} Bxg2 {[%emt 0:00:35]} 17. Kxg2 {[%emt 0:00:02]} a4 {[%emt 0:08:18]} 18. Qc4 {[%emt 0:02:20]} Rd7 {[%emt 0:04:23]} 19. Qe4 {[%emt 0:01:47]} Ra5 {[%emt 0:05:52]} 20. Rc4 {[%emt 0:01:47]} Nd4 {[%emt 0:06:42]} 21. Bxd4 {[%emt 0:01:00]} exd4 {[%emt 0:00:04]} 22. Rxd4 {[%emt 0:00:25]} Rxd4 {[%emt 0:00:45]} 23. Qxd4 {[%emt 0:00:02]} Bf6 {[%emt 0:01:12]} 24. Qb4 {[%emt 0:00:47]} Rh5 {[%emt 0:01:01]} 25. Nf3 {[%emt 0:09:15]} c6 {[%emt 0:10:19]} 26. Qxa4 {[%emt 0:02:35]} b5 {[%emt 0:04:03]} 27. Qb4 {[%emt 0:09:48]} c5 {[%emt 0:03:39]} 28. Qxb5 {[%emt 0:01:21]} Qh3+ {[%emt 0:00:23]} 29. Kh1 {[%emt 0:00:24]} g5 {[%emt 0:00:08]} 30. Rg1 {[%emt 0:04:09]} g4 {[%emt 0:00:34]} 31. Qb8+ {[%emt 0:00:48]} Kg7 {[%emt 0:00:05]} 32. Nh4 {[%emt 0:00:51]} Be5 {[%emt 0:00:59]} 33. Qd8 {[%emt 0:01:48]} Bf6 {[%emt 0:00:15]} 34. Qd7 {[%emt 0:00:16]} Be5 {[%emt 0:02:31]} 35. Rg2 {[%emt 0:00:38]} Kf6 {[%emt 0:03:16]} 36. Qc6+ {[%emt 0:01:35]} Kg7 {[%emt 0:00:10]} 37. Qxc5 {[%emt 0:00:19]} Rg5 {[%emt 0:01:43]} 38. e4 {[%emt 0:01:27]} Bf6 {[%emt 0:01:25]} 39. Nf5+ {[%emt 0:00:26]} Kg6 {[%emt 0:00:14]} 40. Qc8 {[%emt 0:00:56]} 1-0

[Event "VIII Iberoamericano Mexico 2022"]
[Site "Mexico City"]
[Date "2022.02.18"]
[Round "7.15"]
[White "Ibarra Chami, Luis Fernando"]
[Black "Tapie Amione, Pablo Adib"]
[Result "1/2-1/2"]
[ECO "B32"]
[WhiteElo "2451"]
[BlackElo "2241"]
[Annotator "ChessBase"]
[PlyCount "165"]
[EventDate "2022.02.12"]
[EventType "swiss"]
[EventCountry "MEX"]
[SourceTitle "playchess.com"]
[Source "ChessBase"]
[SourceQuality "1"]
[TimeControl "5400+30"]

1. e4 {[%emt 0:10:15]} c5 {[%emt 0:00:30]} 2. Nf3 {[%emt 0:00:07]} Nc6 {[%emt 0:00:12]} 3. d4 {[%emt 0:00:12]} cxd4 {[%emt 0:00:09]} 4. Nxd4 {[%emt 0:00:08]} e5 {[%emt 0:00:31]} 5. Nb5 {[%emt 0:00:33]} d6 {[%emt 0:00:25]} 6. c4 {[%emt 0:02:31]} Be6 {[%emt 0:00:49]} 7. Be2 {[%emt 0:04:14]} g6 {[%emt 0:02:15]} 8. O-O {[%emt 0:02:54]} Rc8 {[%emt 0:00:22]} 9. Be3 {[%emt 0:03:56]} Nf6 {[%emt 0:00:43]} 10. N1c3 {[%emt 0:07:35]} a6 {[%emt 0:01:30]} 11. Nd5 {[%emt 0:06:36]} Nd7 {[%emt 0:32:53]} 12. Nbc3 {[%emt 0:10:45]} Bg7 {[%emt 0:00:29]} 13. Qb3 {[%emt 0:08:20]} Na5 {[%emt 0:26:08]} 14. Qb4 {[%emt 0:06:23]} Nc5 {[%emt 0:01:03]} 15. Qb6 {[%emt 0:06:00]} Qxb6 {[%emt 0:06:39]} 16. Nxb6 {[%emt 0:00:06]} Rc6 {[%emt 0:00:03]} 17. Nbd5 {[%emt 0:07:16]} Nd7 {[%emt 0:00:14]} 18. b3 {[%emt 0:00:39]} f5 {[%emt 0:00:09]} 19. Rad1 {[%emt 0:01:20]} f4 {[%emt 0:01:50]} 20. Bc1 {[%emt 0:00:09]} Rc8 {[%emt 0:02:23]} 21. g3 {[%emt 0:01:10]} Rf8 {[%emt 0:06:21]} 22. Rfe1 {[%emt 0:09:29]} f3 {[%emt 0:04:51]} 23. Bf1 {[%emt 0:00:04]} Rf7 {[%emt 0:00:05]} 24. h4 {[%emt 0:01:03]} Nc6 {[%emt 0:00:14]} 25. Kh2 {[%emt 0:00:28]} Nd4 {[%emt 0:01:47]} 26. Bh3 {[%emt 0:01:22]} Bxh3 {[%emt 0:01:11]} 27. Kxh3 {[%emt 0:00:04]} Nc5 {[%emt 0:00:11]} 28. Be3 {[%emt 0:01:19]} Nce6 {[%emt 0:00:33]} 29. Rc1 {[%emt 0:01:31]} Rf8 {[%emt 0:02:32]} 30. Nb1 {[%emt 0:00:14]} Kf7 {[%emt 0:00:48]} 31. Na3 {[%emt 0:00:14]} Nc5 {[%emt 0:00:11]} 32. Rcd1 {[%emt 0:01:26]} Rfe8 {[%emt 0:00:03]} 33. Bc1 {[%emt 0:03:06]} b5 {[%emt 0:00:40]} 34. Bb2 {[%emt 0:01:08]} Nce6 {[%emt 0:01:00]} 35. g4 {[%emt 0:00:23]} Rc5 {[%emt 0:01:35]} 36. Kg3 {[%emt 0:00:05]} Rb8 {[%emt 0:00:16]} 37. Rd2 {[%emt 0:00:10]} Kg8 {[%emt 0:00:41]} 38. Ne3 {[%emt 0:00:16]} bxc4 {[%emt 0:00:28]} 39. Naxc4 {[%emt 0:00:07]} Bf8 {[%emt 0:00:42]} 40. Bxd4 {[%emt 0:00:20]} exd4 {[%emt 0:00:42]} 41. Nc2 {[%emt 0:00:34]} Bh6 {[%emt 0:00:10]} 42. Rd3 {[%emt 0:01:10]} Bf4+ {[%emt 0:01:11]} 43. Kxf3 {[%emt 0:00:20]} Rf8 {[%emt 0:00:03]} 44. Kg2 {[%emt 0:01:05]} Be5 {[%emt 0:00:38]} 45. Rf3 {[%emt 0:00:14]} Rxf3 {[%emt 0:00:25]} 46. Kxf3 {[%emt 0:00:04]} Rc8 {[%emt 0:00:02]} 47. Ke2 {[%emt 0:01:08]} Rf8 {[%emt 0:00:05]} 48. Rf1 {[%emt 0:01:34]} h5 {[%emt 0:00:02]} 49. gxh5 {[%emt 0:00:06]} Rf4 {[%emt 0:00:20]} 50. hxg6 {[%emt 0:00:55]} Rxe4+ {[%emt 0:00:06]} 51. Kd1 {[%emt 0:00:06]} Rxh4 {[%emt 0:00:31]} 52. Re1 {[%emt 0:00:13]} Rh5 {[%emt 0:00:04]} 53. Nb4 {[%emt 0:00:19]} Nf4 {[%emt 0:00:23]} 54. Nxa6 {[%emt 0:02:00]} Nd3 {[%emt 0:00:03]} 55. Re2 {[%emt 0:00:03]} Rf5 {[%emt 0:00:02]} 56. Kd2 {[%emt 0:01:20]} Nxf2 {[%emt 0:00:09]} 57. Nb4 {[%emt 0:00:17]} Bg3 {[%emt 0:01:40]} 58. Nd3 {[%emt 0:00:17]} d5 {[%emt 0:00:01]} 59. Nd6 {[%emt 0:00:51]} Rf3 {[%emt 0:03:09]} 60. Nxf2 {[%emt 0:00:03]} Bxf2 {[%emt 0:00:02]} 61. Re8+ {[%emt 0:00:15]} Kg7 {[%emt 0:00:09]} 62. Ke2 {[%emt 0:00:06]} Rf6 {[%emt 0:00:52]} 63. Re7+ {[%emt 0:00:06]} Kxg6 {[%emt 0:00:11]} 64. Nb5 {[%emt 0:02:21]} Bg1 {[%emt 0:00:15]} 65. Kd3 {[%emt 0:00:24]} Rf3+ {[%emt 0:00:05]} 66. Kd2 {[%emt 0:00:10]} Be3+ {[%emt 0:01:15]} 67. Kd3 {[%emt 0:01:24]} Bg5+ {[%emt 0:05:54]} 68. Ke2 {[%emt 0:00:05]} Rh3 {[%emt 0:00:10]} 69. Re6+ {[%emt 0:00:05]} Kf7 {[%emt 0:00:02]} 70. Nxd4 {[%emt 0:02:27]} Rh4 {[%emt 0:01:18]} 71. Re5 {[%emt 0:00:21]} Bf6 {[%emt 0:00:01]} 72. Nf3 {[%emt 0:00:26]} Bxe5 {[%emt 0:01:17]} 73. Nxh4 {[%emt 0:00:04]} Ke6 {[%emt 0:00:04]} 74. Kd3 {[%emt 0:00:08]} Kd6 {[%emt 0:00:06]} 75. Nf3 {[%emt 0:00:12]} Bf6 {[%emt 0:00:04]} 76. b4 {[%emt 0:00:09]} Kc6 {[%emt 0:00:15]} 77. Nd4+ {[%emt 0:00:14]} Kb6 {[%emt 0:00:05]} 78. a4 {[%emt 0:00:07]} Be7 {[%emt 0:00:04]} 79. Kc3 {[%emt 0:01:18]} Bf6 {[%emt 0:00:01]} 80. Kd3 {[%emt 0:01:04]} Be7 {[%emt 0:00:02]} 81. b5 {[%emt 0:01:34]} Ka5 {[%emt 0:00:44]} 82. Nf5 {[%emt 0:00:06]} Bc5 {[%emt 0:00:12]} 83. Ne3 {[%emt 0:00:50]} 1/2-1/2

[Event "VIII Iberoamericano Mexico 2022"]
[Site "Mexico City"]
[Date "2022.02.18"]
[Round "7.16"]
[White "Santos, Jose Guilherme B Lim"]
[Black "Perez Gormaz, Matias"]
[Result "1-0"]
[ECO "B94"]
[WhiteElo "2363"]
[BlackElo "2404"]
[Annotator "NA"]
[PlyCount "74"]
[EventDate "2022.02.12"]
[EventType "swiss"]
[EventCountry "MEX"]
[SourceTitle "playchess.com"]
[Source "ChessBase"]
[SourceQuality "1"]
[TimeControl "5400+30"]

1. e4 {[%emt 0:00:03]} c5 {[%emt 0:00:13]} 2. Nf3 {[%emt 0:00:08]} d6 {[%emt 0:00:18]} 3. d4 {[%emt 0:00:11]} cxd4 {[%emt 0:00:04]} 4. Nxd4 {[%emt 0:00:10]} Nf6 {[%emt 0:00:06]} 5. Nc3 {[%emt 0:00:04]} a6 {[%emt 0:00:07]} 6. Bg5 {[%emt 0:00:39]} Nbd7 {[%emt 0:00:14]} 7. Bc4 {[%emt 0:01:45]} Qb6 {[%emt 0:00:24]} 8. Qd2 {[%emt 0:09:11]} Qxb2 {[%emt 0:01:11]} 9. Rb1 {[%emt 0:00:05]} Qa3 {[%emt 0:00:13]} 10. O-O {[%emt 0:00:20]} e6 {[%emt 0:05:18]} 11. Kh1 {[%emt 0:00:03]} Be7 {[%emt 0:12:17]} 12. f4 {[%emt 0:03:22]} Nc5 {[%emt 0:18:23]} 13. Rf3 {[%emt 0:09:26]} Ncxe4 {[%emt 0:23:40]} 14. Nxe4 {[%emt 0:00:34]} Nxe4 {[%emt 0:00:04]} 15. Qe1 {[%emt 0:22:56]} Qc5 {[%emt 0:00:07]} 16. Qxe4 {[%emt 0:00:19]} d5 {[%emt 0:05:18]} 17. Bxd5 {[%emt 0:01:49]} Qxd5 {[%emt 0:06:02]} 18. Qxd5 {[%emt 0:00:59]} exd5 {[%emt 0:00:03]} 19. Re3 {[%emt 0:00:14]} f6 {[%emt 0:00:03]} 20. Rbe1 {[%emt 0:00:05]} O-O {[%emt 0:00:03]} 21. Rxe7 {[%emt 0:00:23]} fxg5 {[%emt 0:00:02]} 22. fxg5 {[%emt 0:00:07]} Bf5 {[%emt 0:01:40]} 23. Rxb7 {[%emt 0:09:51]} Be4 {[%emt 0:00:38]} 24. Kg1 {[%emt 0:00:15]} Rac8 {[%emt 0:02:46]} 25. Re2 {[%emt 0:03:47]} Rf7 {[%emt 0:08:42]} 26. Rb6 {[%emt 0:02:00]} a5 {[%emt 0:03:07]} 27. h3 {[%emt 0:00:25]} Rfc7 {[%emt 0:00:31]} 28. Ra6 {[%emt 0:10:54]} Rc4 {[%emt 0:02:23]} 29. Rd2 {[%emt 0:00:21]} Ra4 {[%emt 0:08:07]} 30. c3 {[%emt 0:13:43]} Rxc3 {[%emt 0:00:09]} 31. Rf2 {[%emt 0:00:11]} h6 {[%emt 0:03:08]} 32. Ra8+ {[%emt 0:02:53]} Kh7 {[%emt 0:00:07]} 33. Ne6 {[%emt 0:00:00]} hxg5 {[%emt 0:00:37]} 34. Rf7 {[%emt 0:00:05]} Kg6 {[%emt 0:00:29]} 35. Raf8 {[%emt 0:00:10]} Kh6 {[%emt 0:00:52]} 36. Rxg7 {[%emt 0:00:04]} Rc1+ {[%emt 0:00:28]} 37. Kh2 {[%emt 0:00:05]} Bd3 {[%emt 0:01:06]} 1-0

[Event "VIII Iberoamericano Mexico 2022"]
[Site "Mexico City"]
[Date "2022.02.18"]
[Round "7.17"]
[White "Zacarias, M Ruben D"]
[Black "Leon Valdes, Jony Wilson"]
[Result "0-1"]
[ECO "C06"]
[WhiteElo "2174"]
[BlackElo "2392"]
[Annotator "NA"]
[PlyCount "58"]
[EventDate "2022.02.12"]
[EventType "swiss"]
[EventCountry "MEX"]
[SourceTitle "playchess.com"]
[Source "ChessBase"]
[SourceQuality "1"]
[TimeControl "5400+30"]

1. e4 {[%emt 0:00:03]} e6 {[%emt 0:06:52]} 2. d4 {[%emt 0:00:16]} d5 {[%emt 0:00:04]} 3. Nd2 {[%emt 0:00:37]} Nf6 {[%emt 0:01:46]} 4. e5 {[%emt 0:00:12]} Nfd7 {[%emt 0:00:05]} 5. Bd3 {[%emt 0:00:11]} c5 {[%emt 0:00:04]} 6. c3 {[%emt 0:00:05]} Nc6 {[%emt 0:00:04]} 7. Ne2 {[%emt 0:00:08]} cxd4 {[%emt 0:00:12]} 8. cxd4 {[%emt 0:00:05]} f6 {[%emt 0:00:06]} 9. exf6 {[%emt 0:00:04]} Nxf6 {[%emt 0:00:06]} 10. Nf3 {[%emt 0:00:05]} Bd6 {[%emt 0:00:05]} 11. O-O {[%emt 0:00:06]} Qc7 {[%emt 0:00:04]} 12. Bg5 {[%emt 0:00:09]} O-O {[%emt 0:00:07]} 13. Bh4 {[%emt 0:00:03]} Bd7 {[%emt 0:05:13]} 14. Nc3 {[%emt 0:06:13]} a6 {[%emt 0:01:12]} 15. Bg3 {[%emt 0:00:56]} Be8 {[%emt 0:04:09]} 16. Re1 {[%emt 0:09:21]} Bh5 {[%emt 0:08:35]} 17. Rxe6 {[%emt 0:03:43]} Bxg3 {[%emt 0:00:35]} 18. hxg3 {[%emt 0:00:20]} Nxd4 {[%emt 0:06:04]} 19. Re1 {[%emt 0:09:54]} Bxf3 {[%emt 0:07:48]} 20. gxf3 {[%emt 0:01:05]} Qb6 {[%emt 0:04:16]} 21. f4 {[%emt 0:13:35]} Rae8 {[%emt 0:06:56]} 22. Rxe8 {[%emt 0:01:40]} Rxe8 {[%emt 0:00:04]} 23. Bf1 {[%emt 0:09:26]} Re1 {[%emt 0:01:32]} 24. Qxe1 {[%emt 0:12:32]} Nf3+ {[%emt 0:00:07]} 25. Kg2 {[%emt 0:00:04]} Nxe1+ {[%emt 0:00:08]} 26. Rxe1 {[%emt 0:00:04]} Qxb2 {[%emt 0:03:36]} 27. Ne2 {[%emt 0:00:57]} Ne4 {[%emt 0:01:51]} 28. f3 {[%emt 0:01:24]} Nc3 {[%emt 0:00:40]} 29. Kg1 {[%emt 0:02:07]} Qd2 {[%emt 0:00:28]} 0-1

[Event "VIII Iberoamericano Mexico 2022"]
[Site "Mexico City"]
[Date "2022.02.18"]
[Round "7.18"]
[White "Gemy, Jose Daniel"]
[Black "Corrales Jimenez, Zenia"]
[Result "0-1"]
[ECO "B78"]
[WhiteElo "2381"]
[BlackElo "2151"]
[Annotator "NA"]
[PlyCount "60"]
[EventDate "2022.02.12"]
[EventType "swiss"]
[EventCountry "MEX"]
[SourceTitle "playchess.com"]
[Source "ChessBase"]
[SourceQuality "1"]
[TimeControl "5400+30"]

1. e4 {[%emt 0:00:04]} c5 {[%emt 0:00:17]} 2. Nf3 {[%emt 0:00:09]} d6 {[%emt 0:00:11]} 3. d4 {[%emt 0:00:28]} cxd4 {[%emt 0:00:11]} 4. Nxd4 {[%emt 0:00:07]} Nf6 {[%emt 0:00:29]} 5. Nc3 {[%emt 0:00:05]} g6 {[%emt 0:00:05]} 6. Be3 {[%emt 0:00:20]} Bg7 {[%emt 0:00:19]} 7. Bc4 {[%emt 0:00:21]} Nc6 {[%emt 0:01:13]} 8. f3 {[%emt 0:00:08]} O-O {[%emt 0:01:51]} 9. Qd2 {[%emt 0:00:10]} Bd7 {[%emt 0:00:26]} 10. h4 {[%emt 0:00:12]} Rc8 {[%emt 0:03:26]} 11. Bb3 {[%emt 0:00:10]} h5 {[%emt 0:00:30]} 12. O-O-O {[%emt 0:00:37]} Ne5 {[%emt 0:00:42]} 13. Bg5 {[%emt 0:15:28]} Rc5 {[%emt 0:00:48]} 14. Kb1 {[%emt 0:02:51]} Re8 {[%emt 0:02:06]} 15. Nd5 {[%emt 0:22:53]} Nxd5 {[%emt 0:15:57]} 16. Bxd5 {[%emt 0:00:51]} Qb6 {[%emt 0:00:19]} 17. Nb3 {[%emt 0:09:10]} e6 {[%emt 0:08:55]} 18. Nxc5 {[%emt 0:14:04]} Nc4 {[%emt 0:04:50]} 19. Qc1 {[%emt 0:00:06]} Bxb2 {[%emt 0:00:08]} 20. Bxc4 {[%emt 0:00:49]} Bxc1+ {[%emt 0:00:34]} 21. Kxc1 {[%emt 0:00:02]} Qxc5 {[%emt 0:00:42]} 22. Bb3 {[%emt 0:00:08]} a5 {[%emt 0:01:00]} 23. a4 {[%emt 0:07:22]} b5 {[%emt 0:01:41]} 24. axb5 {[%emt 0:04:45]} a4 {[%emt 0:00:31]} 25. Ba2 {[%emt 0:00:13]} Qa3+ {[%emt 0:00:39]} 26. Kb1 {[%emt 0:00:12]} Rb8 {[%emt 0:00:26]} 27. Bc1 {[%emt 0:03:20]} Rxb5+ {[%emt 0:01:19]} 28. Bb3 {[%emt 0:00:06]} Qc5 {[%emt 0:00:20]} 29. Rd3 {[%emt 0:01:36]} axb3 {[%emt 0:00:10]} 30. cxb3 {[%emt 0:00:01]} Qc4 {[%emt 0:00:38]} 0-1

[Event "VIII Iberoamericano Mexico 2022"]
[Site "Mexico City"]
[Date "2022.02.18"]
[Round "7.19"]
[White "Miranda Rodriguez, Tania"]
[Black "Lopez Gonzalez, Abel Fabian"]
[Result "1/2-1/2"]
[ECO "B11"]
[WhiteElo "2174"]
[BlackElo "2379"]
[Annotator "NA"]
[PlyCount "80"]
[EventDate "2022.02.12"]
[EventType "swiss"]
[EventCountry "MEX"]
[SourceTitle "playchess.com"]
[Source "ChessBase"]
[SourceQuality "1"]
[TimeControl "5400+30"]

1. e4 {[%emt 0:00:06]} c6 {[%emt 0:06:08]} 2. Nc3 {[%emt 0:00:32]} d5 {[%emt 0:00:07]} 3. Nf3 {[%emt 0:00:12]} Bg4 {[%emt 0:00:14]} 4. h3 {[%emt 0:00:29]} Bxf3 {[%emt 0:00:08]} 5. Qxf3 {[%emt 0:00:04]} e6 {[%emt 0:00:20]} 6. d4 {[%emt 0:00:57]} dxe4 {[%emt 0:06:33]} 7. Qxe4 {[%emt 0:00:57]} Nf6 {[%emt 0:00:48]} 8. Qd3 {[%emt 0:00:57]} Na6 {[%emt 0:05:03]} 9. a3 {[%emt 0:01:25]} Qb6 {[%emt 0:01:28]} 10. Be2 {[%emt 0:01:49]} Rd8 {[%emt 0:01:18]} 11. O-O {[%emt 0:02:42]} Rxd4 {[%emt 0:14:22]} 12. Qf3 {[%emt 0:01:35]} Qc7 {[%emt 0:27:03]} 13. Be3 {[%emt 0:02:30]} Rd8 {[%emt 0:00:49]} 14. Rad1 {[%emt 0:02:15]} Rxd1 {[%emt 0:06:31]} 15. Rxd1 {[%emt 0:00:09]} Bc5 {[%emt 0:03:41]} 16. Bxa6 {[%emt 0:07:38]} Bxe3 {[%emt 0:00:16]} 17. Nb5 {[%emt 0:02:55]} Bxf2+ {[%emt 0:07:18]} 18. Qxf2 {[%emt 0:02:38]} cxb5 {[%emt 0:00:17]} 19. Bxb5+ {[%emt 0:03:16]} Ke7 {[%emt 0:00:22]} 20. Qxa7 {[%emt 0:01:45]} Rd8 {[%emt 0:03:47]} 21. Rxd8 {[%emt 0:02:10]} Kxd8 {[%emt 0:00:05]} 22. c4 {[%emt 0:03:57]} e5 {[%emt 0:02:18]} 23. b4 {[%emt 0:02:25]} e4 {[%emt 0:01:37]} 24. Qd4+ {[%emt 0:02:23]} Kc8 {[%emt 0:03:26]} 25. c5 {[%emt 0:12:43]} Qg3 {[%emt 0:04:47]} 26. c6 {[%emt 0:11:43]} Qxa3 {[%emt 0:00:28]} 27. Qc5 {[%emt 0:03:52]} bxc6 {[%emt 0:00:31]} 28. Qxc6+ {[%emt 0:00:58]} Kb8 {[%emt 0:00:07]} 29. Qd6+ {[%emt 0:03:15]} Kb7 {[%emt 0:00:05]} 30. Qe7+ {[%emt 0:06:46]} Kb6 {[%emt 0:05:33]} 31. Qc5+ {[%emt 0:00:20]} Kb7 {[%emt 0:00:00]} 32. Bc6+ {[%emt 0:01:16]} Kb8 {[%emt 0:00:00]} 33. Qb6+ {[%emt 0:06:13]} Kc8 {[%emt 0:00:00]} 34. Bb7+ {[%emt 0:00:52]} Kd7 {[%emt 0:00:00]} 35. Bc6+ {[%emt 0:01:16]} Ke7 {[%emt 0:00:00]} 36. Qc7+ {[%emt 0:01:14]} Ke6 {[%emt 0:00:00]} 37. Qc8+ {[%emt 0:01:02]} Kd6 {[%emt 0:00:00]} 38. Qf8+ {[%emt 0:00:23]} Ke6 {[%emt 0:00:39]} 39. Qc8+ {[%emt 0:00:20]} Kd6 {[%emt 0:02:28]} 40. Qf8+ {[%emt 0:00:27]} Ke6 {[%emt 0:01:53]} 1/2-1/2

[Event "VIII Iberoamericano Mexico 2022"]
[Site "Mexico City"]
[Date "2022.02.18"]
[Round "7.20"]
[White "Veiga, Jose Francisco R P N"]
[Black "Real Pereyra, Jeronimo"]
[Result "1-0"]
[ECO "A37"]
[WhiteElo "2366"]
[BlackElo "2147"]
[Annotator "NA"]
[PlyCount "69"]
[EventDate "2022.02.12"]
[EventType "swiss"]
[EventCountry "MEX"]
[SourceTitle "playchess.com"]
[Source "ChessBase"]
[SourceQuality "1"]
[TimeControl "5400+30"]

1. Nf3 {[%emt 0:00:11]} c5 {[%emt 0:13:06]} 2. g3 {[%emt 0:00:12]} Nc6 {[%emt 0:00:05]} 3. Bg2 {[%emt 0:00:09]} g6 {[%emt 0:00:05]} 4. O-O {[%emt 0:00:13]} Bg7 {[%emt 0:00:11]} 5. c4 {[%emt 0:00:10]} d6 {[%emt 0:00:34]} 6. Nc3 {[%emt 0:00:16]} h5 {[%emt 0:00:42]} 7. h4 {[%emt 0:03:28]} Nh6 {[%emt 0:00:20]} 8. a3 {[%emt 0:01:34]} O-O {[%emt 0:00:41]} 9. Rb1 {[%emt 0:00:55]} a5 {[%emt 0:00:18]} 10. d3 {[%emt 0:01:03]} Bd7 {[%emt 0:10:18]} 11. Ng5 {[%emt 0:01:48]} Rb8 {[%emt 0:03:57]} 12. Bd2 {[%emt 0:00:53]} Nf5 {[%emt 0:06:35]} 13. Nb5 {[%emt 0:02:59]} Ncd4 {[%emt 0:11:23]} 14. Nxd4 {[%emt 0:12:49]} Nxd4 {[%emt 0:06:13]} 15. e3 {[%emt 0:00:12]} Nf5 {[%emt 0:02:18]} 16. Qe1 {[%emt 0:05:04]} a4 {[%emt 0:00:58]} 17. Bc3 {[%emt 0:00:39]} b5 {[%emt 0:04:49]} 18. Bxg7 {[%emt 0:01:12]} Kxg7 {[%emt 0:00:10]} 19. Qc3+ {[%emt 0:00:58]} f6 {[%emt 0:00:23]} 20. b4 {[%emt 0:05:20]} axb3 {[%emt 0:02:18]} 21. Rxb3 {[%emt 0:01:14]} bxc4 {[%emt 0:01:17]} 22. Rxb8 {[%emt 0:00:18]} Qxb8 {[%emt 0:00:09]} 23. dxc4 {[%emt 0:00:02]} Qb6 {[%emt 0:08:37]} 24. Bd5 {[%emt 0:00:39]} Kh6 {[%emt 0:05:06]} 25. Ne6 {[%emt 0:00:28]} Rb8 {[%emt 0:00:27]} 26. Ra1 {[%emt 0:00:38]} Ba4 {[%emt 0:00:16]} 27. Be4 {[%emt 0:06:52]} Bc6 {[%emt 0:03:28]} 28. Bxf5 {[%emt 0:09:32]} gxf5 {[%emt 0:00:04]} 29. e4 {[%emt 0:00:28]} Bxe4 {[%emt 0:01:30]} 30. Qe3+ {[%emt 0:00:04]} Kh7 {[%emt 0:01:13]} 31. Qe2 {[%emt 0:00:29]} Kh6 {[%emt 0:03:40]} 32. Nf4 {[%emt 0:00:16]} Qb1+ {[%emt 0:01:14]} 33. Kh2 {[%emt 0:00:06]} Qxa1 {[%emt 0:05:14]} 34. Qxh5+ {[%emt 0:00:08]} Kg7 {[%emt 0:00:06]} 35. Ne6+ {[%emt 0:00:05]} 1-0